bitfinex-derivatives/quotes_BTCF0:USTF0_20241110
["timestamp","ask_amount","ask_price","bid_price","bid_amount"]
[1731219806737,0.31743176,79134.0,79117.0,0.00014077]
[1731219806738,0.14732001,79128.0,79117.0,0.00014077]
[1731219807030,0.14732001,79122.0,79117.0,0.00014077]
[1731219807329,0.3608,79124.0,79117.0,0.00014077]
[1731219807330,0.2868,79121.0,79117.0,0.00014077]
[1731219807520,0.3608,79124.0,79117.0,0.14746078]
[1731219807925,0.3608,79124.0,79123.0,0.14732001]
[1731219808132,0.2868,79133.0,79123.0,0.14732001]
[1731219809431,0.3608,79135.0,79129.0,0.14732001]
[1731219810231,0.3608,79135.0,79130.0,0.1461]
[1731219810633,0.00189613,79140.0,79130.0,0.5069]
[1731219810835,0.00189613,79140.0,79139.0,0.3608]
[1731219811329,1.3e-07,79140.0,79139.0,0.3608]
[1731219812829,1.3e-07,79140.0,79139.0,0.42379776]
[1731219813030,1.3e-07,79140.0,79139.0,0.3608]
[1731219815237,0.02440877,79140.0,79139.0,0.3608]
[1731219815435,1.3e-07,79140.0,79139.0,0.3608]
[1731219815935,0.02440877,79140.0,79139.0,0.3378]
[1731219816140,1.3e-07,79140.0,79139.0,0.3378]
[1731219816736,0.02440864,79140.0,79139.0,0.3378]
[1731219817037,0.02440864,79144.0,79139.0,0.3378]
[1731219817237,0.00013755,79145.0,79139.0,0.3378]
[1731219817238,0.02440864,79143.0,79139.0,0.3378]
[1731219817435,0.02440864,79142.0,79139.0,0.3378]
[1731219817641,0.02440864,79141.0,79139.0,0.3378]
[1731219817839,0.02440864,79140.0,79139.0,0.3378]
[1731219818930,0.02440864,79140.0,79134.0,0.15816]
[1731219819134,0.0553539,79139.0,79134.0,0.15816]
[1731219819332,0.0553539,79138.0,79134.0,0.15816]
[1731219819531,0.05535499,79137.0,79134.0,0.15816]
[1731219819733,0.05535499,79136.0,79134.0,0.15816]
[1731219819938,0.05535499,79135.0,79134.0,0.15816]
[1731219820333,0.02440864,79135.0,79134.0,0.15816]
[1731219820536,0.05535499,79135.0,79134.0,0.15816]
[1731219820843,0.00013755,79145.0,79134.0,0.15816]
[1731219820844,0.05535499,79144.0,79134.0,0.15816]
[1731219821037,0.09414392,79143.0,79134.0,0.15816]
[1731219821243,0.09414392,79142.0,79134.0,0.15816]
[1731219821443,0.05535499,79141.0,79134.0,0.15816]
[1731219821750,0.05535499,79140.0,79134.0,0.15816]
[1731219822042,0.02440864,79139.0,79134.0,0.15816]
[1731219822345,0.02440864,79138.0,79134.0,0.15816]
[1731219822543,0.02440864,79137.0,79134.0,0.15816]
[1731219822742,0.02440864,79136.0,79134.0,0.15816]
[1731219822936,0.02441027,79135.0,79134.0,0.15816]
[1731219823136,0.02441027,79135.0,79134.0,0.3608]
[1731219823436,0.05535517,79135.0,79122.0,0.00076]
[1731219823747,0.14732001,79133.0,79122.0,0.15816]
[1731219823946,0.05535517,79132.0,79122.0,0.22043583]
[1731219824143,0.05535517,79132.0,79122.0,0.15816]
[1731219824348,0.2913,79131.0,79122.0,0.15816]
[1731219824648,0.05535517,79130.0,79125.0,0.14732001]
[1731219824838,0.05535517,79129.0,79125.0,0.50812001]
[1731219825033,0.00378727,79128.0,79125.0,0.50812001]
[1731219825233,0.3608,79133.0,79125.0,0.50812001]
[1731219825234,0.3608,79133.0,79127.0,0.14732001]
[1731219825842,0.3608,79133.0,79128.0,0.1468]
[1731219827248,0.3608,79140.0,79132.0,0.3608]
[1731219827547,0.03094673,79139.0,79134.0,0.14732001]
[1731219827745,0.03094673,79138.0,79134.0,0.14732001]
[1731219827944,0.03094673,79137.0,79134.0,0.14732001]
[1731219828255,0.06407253,79145.0,79134.0,0.14732001]
[1731219828551,0.03094423,79144.0,79134.0,0.14732001]
[1731219828845,0.03094421,79143.0,79134.0,0.14732001]
[1731219829042,0.03094421,79142.0,79134.0,0.14732001]
[1731219829241,0.03094421,79141.0,79134.0,0.14732001]
[1731219829437,0.03094421,79140.0,79134.0,0.12432001]
[1731219829642,0.03094421,79139.0,79134.0,0.12432001]
[1731219829844,0.03094421,79138.0,79134.0,0.12432001]
[1731219830049,0.00013755,79145.0,79134.0,0.12432001]
[1731219830344,0.06973012,79144.0,79134.0,0.12432001]
[1731219830549,0.06973012,79143.0,79134.0,0.12432001]
[1731219830752,0.06973012,79142.0,79134.0,0.12432001]
[1731219830944,0.03094396,79141.0,79134.0,0.12432001]
[1731219831245,0.03094396,79140.0,79134.0,0.12432001]
[1731219831445,0.03094396,79139.0,79134.0,0.1883414]
[1731219831646,0.03094396,79138.0,79134.0,0.1883414]
[1731219831846,0.03094396,79137.0,79134.0,0.1883414]
[1731219832046,0.03094396,79136.0,79134.0,0.1883414]
[1731219832248,0.03094396,79135.0,79134.0,0.1883414]
[1731219833643,0.00013755,79145.0,79134.0,0.1883414]
[1731219833846,0.03094397,79144.0,79134.0,0.1883414]
[1731219834037,0.03094397,79143.0,79134.0,0.1883414]
[1731219834243,0.03094397,79142.0,79134.0,0.1883414]
[1731219834448,0.03094397,79141.0,79134.0,0.1883414]
[1731219834646,0.00013755,79145.0,79134.0,0.1883414]
[1731219834841,0.03094401,79144.0,79134.0,0.1883414]
[1731219835047,0.05535284,79143.0,79134.0,0.1883414]
[1731219835251,0.05535284,79142.0,79134.0,0.1883414]
[1731219835548,0.05535284,79141.0,79134.0,0.06402139]
[1731219835763,0.05535285,79140.0,79132.0,0.3608]
[1731219835939,0.02440883,79139.0,79132.0,0.3608]
[1731219836143,0.02440883,79138.0,79132.0,0.7216]
[1731219836347,0.02440883,79137.0,79132.0,0.7216]
[1731219836545,0.02440883,79136.0,79128.0,0.29412001]
[1731219836747,0.02440883,79135.0,79132.0,0.06307302]
[1731219836955,0.02440883,79134.0,79132.0,0.06307302]
[1731219837252,0.0244093,79133.0,79132.0,0.06307302]
[1731219837446,0.0244093,79133.0,79128.0,0.29412001]
[1731219837644,0.0244093,79132.0,79128.0,0.29412001]
[1731219837841,0.0244093,79131.0,79129.0,0.18969902]
[1731219838055,0.00013755,79145.0,79132.0,0.02613915]
[1731219838257,0.0553541,79144.0,79132.0,0.02613915]
[1731219838455,0.03094471,79143.0,79132.0,0.02613915]
[1731219838657,0.03094471,79142.0,79132.0,0.02613915]
[1731219838851,0.03094471,79141.0,79138.0,0.3608]
[1731219839052,0.00013755,79145.0,79139.0,0.15776]
[1731219840244,0.03094376,79144.0,79139.0,0.15776]
[1731219840450,0.03094376,79144.0,79140.0,0.3608]
[1731219840958,0.03094376,79144.0,79142.0,0.3608]
[1731219841147,0.03094376,79144.0,79139.0,0.15776]
[1731219841757,0.03094376,79144.0,79139.0,0.51856]
[1731219841959,0.03094376,79143.0,79139.0,0.51856]
[1731219842159,0.00013755,79145.0,79139.0,0.15776]
[1731219844448,0.00013755,79145.0,79139.0,0.13476]
[1731219846951,0.06973,79144.0,79139.0,0.13476]
[1731219847659,0.00013755,79145.0,79139.0,0.13476]
[1731219847660,0.03094391,79143.0,79139.0,0.13476]
[1731219847963,0.03094391,79142.0,79139.0,0.13476]
[1731219848155,0.05535263,79141.0,79139.0,0.13476]
[1731219848355,0.05535263,79140.0,79139.0,0.13476]
[1731219850865,0.05535263,79140.0,79138.0,0.3608]
[1731219851064,0.45493869,79139.0,79132.0,0.02613915]
[1731219851364,0.14732001,79133.0,79132.0,0.02613915]
[1731219851554,0.24147071,79133.0,79132.0,0.02613915]
[1731219853163,0.0941507,79133.0,79132.0,0.02613915]
[1731219856255,0.03094878,79133.0,79132.0,0.02613915]
[1731219856462,0.09415357,79136.0,79132.0,0.02613915]
[1731219856756,0.14732001,79133.0,79132.0,0.02613915]
[1731219856961,0.24147358,79133.0,79132.0,0.02613915]
[1731219858858,0.20268139,79133.0,79132.0,0.02613915]
[1731219859567,0.20268139,79133.0,79132.0,0.00313915]
[1731219861060,0.20268197,79133.0,79132.0,0.00313915]
[1731219862859,0.24147398,79133.0,79132.0,0.00313915]
[1731219863065,0.20268197,79133.0,79132.0,0.00313915]
[1731219863264,0.17173287,79133.0,79132.0,0.00313915]
[1731219863666,0.2414778,79133.0,79132.0,0.00313915]
[1731219863866,0.40340316,79133.0,79132.0,0.00313915]
[1731219864264,0.26677106,79133.0,79132.0,0.00313915]
[1731219865272,0.22797666,79133.0,79132.0,0.00313915]
[1731219865967,0.22797723,79133.0,79132.0,0.00313915]
[1731219869577,0.26677205,79133.0,79132.0,0.00313915]
[1731219870275,0.22797723,79133.0,79132.0,0.00313915]
[1731219872479,0.26677189,79133.0,79132.0,0.00313915]
[1731219874567,0.26677225,79133.0,79119.0,0.26463915]
[1731219874877,0.09415898,79132.0,79119.0,0.26463915]
[1731219877775,0.05536456,79131.0,79119.0,0.26463915]
[1731219877973,0.05536456,79130.0,79119.0,0.26463915]
[1731219878176,0.05536456,79129.0,79119.0,0.26463915]
[1731219878377,0.17261327,79133.0,79119.0,0.26463915]
[1731219878378,0.05536456,79128.0,79119.0,0.26463915]
[1731219878571,0.05536456,79127.0,79119.0,0.26463915]
[1731219878769,0.05536456,79126.0,79119.0,0.26463915]
[1731219878974,0.05536456,79125.0,79119.0,0.26463915]
[1731219879178,0.05536456,79124.0,79119.0,0.26463915]
[1731219879475,0.05536456,79123.0,79119.0,0.26463915]
[1731219879669,0.05536456,79122.0,79119.0,0.26463915]
[1731219879875,0.024414,79121.0,79119.0,0.26463915]
[1731219880081,0.024414,79120.0,79119.0,0.26463915]
[1731219880378,0.05536361,79120.0,79119.0,0.26463915]
[1731219881969,0.024414,79120.0,79119.0,0.26463915]
[1731219882177,0.024414,79120.0,79119.0,0.62543915]
[1731219882781,0.00320332,79120.0,79119.0,0.62543915]
[1731219882986,0.09667518,79125.0,79119.0,0.62543915]
[1731219884279,0.03094969,79124.0,79119.0,0.62543915]
[1731219884475,0.03094969,79123.0,79119.0,0.62543915]
[1731219884688,0.03094969,79122.0,79119.0,0.62543915]
[1731219884889,0.03094969,79121.0,79119.0,0.62543915]
[1731219885187,0.03094969,79120.0,79119.0,0.62543915]
[1731219885490,0.09667518,79129.0,79119.0,0.62543915]
[1731219885680,0.03094967,79128.0,79119.0,0.62543915]
[1731219885878,0.03094965,79127.0,79119.0,0.62543915]
[1731219886083,0.03094965,79126.0,79119.0,0.62543915]
[1731219886284,0.03094965,79125.0,79119.0,0.62543915]
[1731219886484,0.03094965,79124.0,79119.0,0.62543915]
[1731219886685,0.03094965,79123.0,79119.0,0.62543915]
[1731219886882,0.03094965,79122.0,79119.0,0.62543915]
[1731219887089,0.03094965,79121.0,79119.0,0.62543915]
[1731219887281,0.03094965,79120.0,79119.0,0.62543915]
[1731219887488,0.03094965,79123.0,79119.0,0.62543915]
[1731219887688,0.03094965,79122.0,79119.0,0.62543915]
[1731219887883,0.03094965,79121.0,79119.0,0.62543915]
[1731219888187,0.12762483,79120.0,79119.0,0.26463915]
[1731219889002,0.16642039,79120.0,79119.0,0.26463915]
[1731219889601,0.16642039,79120.0,79119.0,0.24163915]
[1731219892801,0.1908357,79120.0,79119.0,0.24163915]
[1731219894206,0.15204014,79120.0,79119.0,0.39883915]
[1731219895912,0.09416147,79120.0,79119.0,0.39883915]
[1731219897018,0.05536496,79120.0,79119.0,0.39883915]
[1731219897409,0.05536496,79121.0,79119.0,0.39883915]
[1731219897617,0.05536496,79120.0,79119.0,0.39883915]
[1731219897814,0.05536496,79121.0,79119.0,0.75963915]
[1731219898021,0.05536496,79120.0,79119.0,0.75963915]
[1731219898517,0.1366321,79138.0,79119.0,1.36382563]
[1731219898724,0.09667518,79142.0,79132.0,0.09667518]
[1731219899019,0.09667518,79138.0,79133.0,0.15648]
[1731219900418,0.0387909,79137.0,79133.0,0.15648]
[1731219900619,0.1366321,79137.0,79134.0,0.1498]
[1731219901021,0.3608,79141.0,79134.0,0.1498]
[1731219901022,0.0387909,79136.0,79134.0,0.1498]
[1731219901218,0.0387909,79135.0,79134.0,0.1498]
[1731219902120,0.0387909,79135.0,79133.0,0.15648]
[1731219902325,0.135466,79134.0,79133.0,0.15648]
[1731219903422,0.03879082,79134.0,79133.0,0.15648]
[1731219904224,0.03879061,79134.0,79133.0,0.15648]
[1731219904727,0.03879061,79134.0,79133.0,0.13348]
[1731219905521,0.03879058,79134.0,79133.0,0.13348]
[1731219906217,0.10364111,79135.0,79133.0,0.79883403]
[1731219906521,0.00013755,79145.0,79134.0,0.61609518]
[1731219906819,0.03094286,79144.0,79142.0,0.3608]
[1731219907020,0.03094286,79143.0,79142.0,0.3608]
[1731219908423,0.02440697,79143.0,79142.0,0.3608]
[1731219908628,0.03094165,79143.0,79142.0,0.51724]
[1731219908824,0.09667518,79144.0,79142.0,0.51724]
[1731219909022,0.05534904,79143.0,79142.0,0.51724]
[1731219909722,0.05534929,79143.0,79142.0,0.51724]
[1731219911132,0.02440727,79143.0,79142.0,0.51724]
[1731219911831,0.02440722,79143.0,79142.0,0.51724]
[1731219912235,0.0244072,79143.0,79142.0,0.87804]
[1731219912419,0.00013755,79145.0,79142.0,0.87804]
[1731219912618,0.02440543,79144.0,79142.0,0.87804]
[1731219912823,0.00013755,79145.0,79142.0,0.87804]
[1731219913123,0.02440556,79144.0,79142.0,0.51724]
[1731219913427,0.00013755,79145.0,79142.0,0.51724]
[1731219913631,0.02440548,79144.0,79142.0,0.51724]
[1731219913835,0.00013755,79145.0,79142.0,0.51724]
[1731219913836,0.02440548,79143.0,79142.0,0.51724]
[1731219915035,0.00013755,79145.0,79142.0,0.51724]
[1731219916031,5.5e-07,79145.0,79142.0,0.51724]
[1731219919332,0.02440488,79144.0,79142.0,0.51724]
[1731219919526,0.02440488,79143.0,79142.0,0.49424]
[1731219920331,0.02440488,79143.0,79142.0,0.3378]
[1731219920631,0.02440488,79143.0,79142.0,0.49424]
[1731219921026,5.5e-07,79145.0,79142.0,0.49424]
[1731219921231,0.05534629,79144.0,79142.0,0.49424]
[1731219921426,0.05534629,79143.0,79142.0,0.49424]
[1731219921826,5.5e-07,79145.0,79142.0,0.49424]
[1731219922028,0.05534596,79144.0,79142.0,0.49424]
[1731219922225,0.05534596,79143.0,79142.0,0.49424]
[1731219922432,5.5e-07,79145.0,79142.0,0.49424]
[1731219922736,0.05534596,79144.0,79142.0,0.49424]
[1731219922933,0.05534596,79143.0,79142.0,0.49424]
[1731219923136,5.5e-07,79145.0,79142.0,0.49424]
[1731219923336,0.05534596,79144.0,79142.0,0.49424]
[1731219923635,0.05534596,79143.0,79142.0,0.49424]
[1731219924733,5.5e-07,79145.0,79142.0,0.49424]
[1731219924935,0.05534596,79144.0,79142.0,0.49424]
[1731219925141,0.05534596,79143.0,79142.0,0.49424]
[1731219925636,0.02440488,79143.0,79142.0,0.49424]
[1731219925939,5.5e-07,79145.0,79142.0,0.49424]
[1731219926137,0.05534551,79144.0,79142.0,0.49424]
[1731219926337,0.02440488,79143.0,79142.0,0.49424]
[1731219926530,0.05534551,79143.0,79142.0,0.49424]
[1731219926928,5.5e-07,79145.0,79142.0,0.49424]
[1731219927240,0.02440488,79144.0,79142.0,0.49424]
[1731219927429,0.02440488,79143.0,79142.0,0.49424]
[1731219927630,5.5e-07,79145.0,79142.0,0.49424]
[1731219927829,0.02440488,79144.0,79142.0,0.3378]
[1731219928031,0.12108006,79143.0,79142.0,0.3378]
[1731219928237,0.12108006,79143.0,79142.0,0.4934]
[1731219928438,0.12108295,79143.0,79142.0,0.4934]
[1731219928739,0.19081167,79143.0,79142.0,0.05054206]
[1731219928942,0.15202561,79143.0,79142.0,0.05054206]
[1731219930236,0.19081494,79143.0,79142.0,0.05054206]
[1731219930430,0.25442545,79143.0,79142.0,0.05054206]
[1731219930830,0.61522545,79143.0,79142.0,0.05054206]
[1731219931524,0.57643612,79143.0,79142.0,0.05054206]
[1731219931726,0.61522534,79143.0,79142.0,0.05054206]
[1731219932342,0.61522548,79143.0,79142.0,0.05054206]
[1731219932833,0.57643612,79143.0,79142.0,0.05054206]
[1731219933236,0.61522543,79143.0,79131.0,0.3608]
[1731219933437,0.09667518,79134.0,79131.0,0.3608]
[1731219933629,0.05535723,79133.0,79131.0,0.3608]
[1731219934426,0.05535723,79132.0,79131.0,0.3608]
[1731219934631,0.05535723,79132.0,79131.0,0.3378]
[1731219935726,0.02441077,79132.0,79131.0,0.3378]
[1731219936737,0.02441077,79132.0,79129.0,0.00084]
[1731219936925,0.09667518,79130.0,79126.0,0.00189534]
[1731219937131,0.09415175,79129.0,79126.0,0.00189534]
[1731219937327,0.36765175,79129.0,79126.0,0.00189534]
[1731219937628,0.05535882,79128.0,79126.0,0.00189534]
[1731219938135,0.2735,79129.0,79126.0,0.00189534]
[1731219938345,0.05536496,79128.0,79126.0,0.00189534]
[1731219940049,0.05536496,79128.0,79119.0,0.1556]
[1731219940349,0.09667518,79123.0,79119.0,0.1556]
[1731219940548,0.02441418,79122.0,79119.0,0.1556]
[1731219942447,0.05536573,79122.0,79119.0,0.1556]
[1731219942651,0.02441418,79122.0,79119.0,0.1556]
[1731219942948,0.02441418,79121.0,79119.0,0.1556]
[1731219943146,0.0244149,79120.0,79119.0,0.1556]
[1731219943545,0.12109008,79120.0,79117.0,0.00014077]
[1731219943746,0.0244149,79119.0,79117.0,0.00014077]
[1731219944839,0.05536947,79119.0,79117.0,0.00014077]
[1731219945445,0.03095457,79118.0,79117.0,0.00014077]
[1731219945850,0.03095457,79119.0,79117.0,0.00014077]
[1731219946049,0.03095457,79118.0,79117.0,0.00014077]
[1731219946853,0.03095457,79119.0,79117.0,0.00014077]
[1731219947153,0.03095457,79118.0,79117.0,0.00014077]
[1731219947850,0.03095457,79119.0,79117.0,0.00014077]
[1731219948044,0.03095545,79118.0,79117.0,0.00014077]
[1731219948851,0.03095545,79119.0,79117.0,0.00014077]
[1731219949058,0.03095545,79118.0,79117.0,0.00014077]
[1731219949446,0.0553731,79118.0,79117.0,0.00014077]
[1731219949748,0.0553731,79118.0,79112.0,0.13278077]
[1731219949949,0.09667518,79114.0,79112.0,0.13278077]
[1731219950150,0.02441765,79113.0,79112.0,0.13278077]
[1731219950751,0.02441765,79113.0,79112.0,0.43134473]
[1731219951256,0.02529911,79119.0,79112.0,0.43134473]
[1731219951448,0.02441585,79118.0,79116.0,0.3608]
[1731219951648,0.02441585,79117.0,79116.0,0.3608]
[1731219952962,0.02441551,79117.0,79116.0,0.3608]
[1731219953561,0.3608,79129.0,79116.0,0.55074983]
[1731219953862,0.3608,79129.0,79127.0,0.09667518]
[1731219954060,0.3608,79129.0,79128.0,0.43174]
[1731219954567,0.09857134,79136.0,79128.0,0.43174]
[1731219954764,0.09857134,79136.0,79134.0,0.3608]
[1731219954968,0.00189616,79136.0,79134.0,0.3608]
[1731219955564,0.09667518,79137.0,79134.0,0.3608]
[1731219956859,0.09667518,79137.0,79135.0,0.1431]
[1731219957061,0.04425911,79152.0,79135.0,0.23977518]
[1731219957260,0.02529911,79152.0,79144.0,0.3608]
[1731219957566,0.09667573,79145.0,79144.0,0.3608]
[1731219957769,0.09667573,79145.0,79144.0,0.6462]
[1731219957957,0.09667573,79145.0,79144.0,0.2854]
[1731219958261,0.12761758,79145.0,79144.0,0.2854]
[1731219958466,0.12761758,79145.0,79135.0,0.20722722]
[1731219958666,0.09667518,79136.0,79135.0,0.34492722]
[1731219958868,0.09667518,79136.0,79135.0,0.49964722]
[1731219959264,5.5e-07,79145.0,79135.0,0.49964722]
[1731219959459,0.14729355,79136.0,79135.0,0.49964722]
[1731219960568,0.14729355,79136.0,79135.0,0.29238]
[1731219961063,0.17823921,79136.0,79135.0,0.29238]
[1731219961462,0.14729355,79136.0,79135.0,0.1377]
[1731219961662,0.14729355,79136.0,79135.0,0.15468]
[1731219961663,0.17823996,79136.0,79135.0,0.15468]
[1731219962370,0.17823995,79136.0,79135.0,0.15468]
[1731219963567,0.05535673,79136.0,79135.0,0.15468]
[1731219963775,5.5e-07,79145.0,79135.0,0.15468]
[1731219964068,5.5e-07,79145.0,79143.0,0.3608]
[1731219964967,5.5e-07,79145.0,79143.0,0.3378]
[1731219965172,5.5e-07,79145.0,79138.0,0.15468]
[1731219965365,0.14729355,79139.0,79138.0,0.15468]
[1731219965969,0.14729355,79139.0,79131.0,0.15468]
[1731219966359,5.5e-07,79145.0,79130.0,0.1477]
[1731219966360,0.14729355,79133.0,79130.0,0.1477]
[1731219966566,0.14729355,79133.0,79121.0,0.65648]
[1731219966768,0.14729355,79122.0,79121.0,0.15468]
[1731219967366,0.14729355,79122.0,79121.0,0.51548]
[1731219967657,0.14729355,79122.0,79121.0,0.15468]
[1731219968969,0.14729355,79128.0,79121.0,0.51548]
[1731219969968,0.3608,79131.0,79121.0,0.51548]
[1731219971375,0.14729355,79127.0,79122.0,0.15468]
[1731219971968,0.03094971,79126.0,79122.0,0.15468]
[1731219972173,0.14729355,79127.0,79122.0,0.15468]
[1731219972174,0.03094971,79125.0,79122.0,0.15468]
[1731219972473,0.14729355,79127.0,79122.0,0.15468]
[1731219974469,0.02441327,79126.0,79122.0,0.15468]
[1731219974669,0.02441327,79125.0,79122.0,0.15468]
[1731219974872,0.02441327,79124.0,79122.0,0.15468]
[1731219975065,0.02441327,79123.0,79122.0,0.15468]
[1731219975267,0.02441327,79123.0,79122.0,0.51548]
[1731219975460,0.02441345,79130.0,79122.0,0.51548]
[1731219975674,0.0553633,79129.0,79122.0,0.51548]
[1731219975874,0.171707,79128.0,79122.0,0.51548]
[1731219976175,0.02441345,79127.0,79122.0,0.51548]
[1731219976473,0.02441345,79126.0,79122.0,0.51548]
[1731219976664,0.02441345,79125.0,79122.0,0.51548]
[1731219976861,0.14729355,79128.0,79122.0,0.51548]
[1731219977165,0.02441321,79127.0,79122.0,0.51548]
[1731219977467,0.02441321,79126.0,79122.0,0.51548]
[1731219977664,0.02441321,79125.0,79122.0,0.51548]
[1731219977869,0.3608,79131.0,79122.0,0.51548]
[1731219978070,0.02441324,79130.0,79122.0,0.51548]
[1731219978268,0.05536268,79129.0,79122.0,0.51548]
[1731219978473,0.05536268,79128.0,79122.0,0.51548]
[1731219978668,0.02441324,79127.0,79122.0,0.51548]
[1731219978874,0.02441324,79126.0,79122.0,0.51548]
[1731219979075,0.02441324,79125.0,79122.0,0.51548]
[1731219979374,0.05536258,79124.0,79122.0,0.51548]
[1731219979568,0.05536258,79123.0,79122.0,0.51548]
[1731219979769,0.05536258,79130.0,79122.0,0.49248]
[1731219979965,0.14729355,79128.0,79122.0,0.49248]
[1731219980168,0.05536258,79127.0,79122.0,0.49248]
[1731219980384,0.05536258,79126.0,79122.0,0.49248]
[1731219980580,0.09415564,79125.0,79122.0,0.49248]
[1731219980870,0.05536258,79124.0,79122.0,0.49248]
[1731219981178,0.05536258,79123.0,79122.0,0.49248]
[1731219981768,0.05536258,79123.0,79122.0,0.15468]
[1731219985673,0.05536258,79126.0,79122.0,0.15468]
[1731219985869,0.09415716,79125.0,79122.0,0.15468]
[1731219986087,0.09415716,79124.0,79122.0,0.15468]
[1731219986383,0.05536258,79123.0,79122.0,0.15468]
[1731219986583,0.05536258,79126.0,79122.0,0.15468]
[1731219986886,0.05536258,79125.0,79122.0,0.15468]
[1731219987086,0.05536258,79124.0,79122.0,0.15468]
[1731219987382,0.05536258,79123.0,79122.0,0.15468]
[1731219987581,0.03094934,79123.0,79122.0,0.15468]
[1731219987780,0.05536258,79126.0,79122.0,0.15468]
[1731219988786,0.09415778,79126.0,79122.0,0.15468]
[1731219992489,0.09415778,79126.0,79106.0,0.3608]
[1731219992685,0.14729355,79114.0,79112.0,0.15384396]
[1731219992886,0.20265613,79114.0,79112.0,0.00016396]
[1731219993089,0.24145568,79114.0,79112.0,0.00016396]
[1731219993395,0.09416213,79113.0,79112.0,0.00016396]
[1731219993688,0.05536258,79113.0,79112.0,0.00016396]
[1731219993890,0.09416325,79113.0,79112.0,0.00016396]
[1731219994079,0.02441324,79113.0,79112.0,0.00016396]
[1731219994282,0.02441324,79116.0,79112.0,0.00016396]
[1731219994583,0.14729355,79115.0,79112.0,0.00016396]
[1731219994786,0.05537102,79114.0,79112.0,0.00016396]
[1731219994981,0.00481619,79114.0,79112.0,0.00016396]
[1731219995989,0.04361879,79114.0,79112.0,0.00016396]
[1731219996894,0.04361879,79114.0,79103.0,0.13084396]
[1731219997286,0.04361879,79114.0,79105.0,0.3608]
[1731219997887,0.04361879,79114.0,79109.0,0.00014869]
[1731219998887,0.0388026,79113.0,79109.0,0.00014869]
[1731219999187,0.42556753,79118.0,79109.0,0.00014869]
[1731219999392,0.42484753,79118.0,79109.0,0.00014869]
[1731220002093,0.06404753,79118.0,79109.0,0.00014869]
[1731220002289,0.02530023,79119.0,79109.0,0.00014869]
[1731220003190,0.3608,79123.0,79109.0,0.00014869]
[1731220003394,0.06975201,79122.0,79121.0,0.14729355]
[1731220003596,0.06975201,79122.0,79119.0,0.51452]
[1731220003787,0.03095368,79121.0,79120.0,0.1146]
[1731220004394,0.02529824,79129.0,79120.0,0.1146]
[1731220004591,0.03094977,79128.0,79120.0,0.1146]
[1731220004792,0.03094977,79127.0,79120.0,0.1146]
[1731220005000,0.03094977,79126.0,79121.0,0.14729355]
[1731220005200,0.05536312,79125.0,79121.0,0.14729355]
[1731220005497,0.05536312,79124.0,79121.0,0.14729355]
[1731220005704,0.05536312,79123.0,79121.0,0.14729355]
[1731220005904,0.02441335,79122.0,79121.0,0.14729355]
[1731220007297,3.5e-07,79122.0,79121.0,0.14729355]
[1731220007497,0.3608,79140.0,79121.0,0.71671471]
[1731220007698,0.3608,79140.0,79129.0,0.50809355]
[1731220007905,0.03094634,79139.0,79129.0,0.50809355]
[1731220008099,0.03284273,79130.0,79129.0,0.50809355]
[1731220008405,0.03094634,79130.0,79129.0,0.50809355]
[1731220008797,0.3608,79140.0,79129.0,0.50809355]
[1731220008990,0.14729355,79138.0,79130.0,0.15368]
[1731220009294,0.03094642,79137.0,79130.0,0.15368]
[1731220010596,0.03094642,79137.0,79130.0,0.13068]
[1731220012601,0.03094642,79137.0,79127.0,0.15368]
[1731220013104,0.0697374,79137.0,79127.0,0.15368]
[1731220013506,0.0697374,79136.0,79127.0,0.15368]
[1731220013705,0.03094642,79135.0,79127.0,0.15368]
[1731220013908,0.03094642,79134.0,79127.0,0.15368]
[1731220014101,0.03094642,79133.0,79127.0,0.15368]
[1731220014308,0.03094642,79132.0,79127.0,0.15368]
[1731220014603,0.3608,79140.0,79131.0,0.14729355]
[1731220014903,0.3608,79140.0,79139.0,0.14729355]
[1731220015106,0.43053471,79140.0,79139.0,0.14729355]
[1731220015701,0.43053471,79140.0,79132.0,0.1183]
[1731220015897,5.5e-07,79145.0,79136.0,0.14729355]
[1731220016102,0.03094472,79144.0,79136.0,0.14729355]
[1731220016302,5.5e-07,79145.0,79136.0,0.14729355]
[1731220016507,0.0309443,79144.0,79136.0,0.14729355]
[1731220016709,0.0309443,79143.0,79136.0,0.26179355]
[1731220016905,0.14729355,79138.0,79122.0,0.15368]
[1731220017110,0.3608,79127.0,79115.0,0.3608]
[1731220017315,0.04360052,79126.0,79116.0,0.15368]
[1731220017610,0.04360052,79126.0,79116.0,0.34264922]
[1731220018002,0.04360052,79126.0,79116.0,0.18896922]
[1731220018201,0.08893364,79126.0,79115.0,0.3608]
[1731220018507,0.08893364,79126.0,79116.0,0.15368]
[1731220018508,0.13664013,79122.0,79116.0,0.15368]
[1731220019215,0.0244138,79121.0,79116.0,0.15368]
[1731220019406,0.06441358,79126.0,79115.0,0.51448]
[1731220019714,0.02441639,79125.0,79115.0,0.51448]
[1731220019910,0.02441639,79124.0,79115.0,0.51448]
[1731220020106,0.02441639,79123.0,79115.0,0.51448]
[1731220020304,0.02441639,79122.0,79115.0,0.51448]
[1731220020509,0.02441639,79121.0,79115.0,0.51352]
[1731220020705,0.42372765,79127.0,79115.0,0.51352]
[1731220020905,0.02441634,79126.0,79115.0,0.51352]
[1731220021108,0.42372765,79127.0,79115.0,0.51352]
[1731220021613,0.02441633,79126.0,79115.0,0.51352]
[1731220021913,0.02441633,79125.0,79115.0,0.51352]
[1731220022101,0.3608,79118.0,79113.0,0.00189616]
[1731220022302,0.02441633,79117.0,79113.0,0.00189616]
[1731220022505,0.36071633,79117.0,79113.0,0.00189616]
[1731220023411,0.02441633,79116.0,79113.0,0.00189616]
[1731220024013,0.3608,79118.0,79113.0,0.00189616]
[1731220024215,0.340642,79118.0,79113.0,0.11299616]
[1731220024415,0.3608,79127.0,79113.0,0.11299616]
[1731220024616,0.3608,79127.0,79119.0,0.14729355]
[1731220025211,0.3608,79127.0,79119.0,0.50809355]
[1731220025411,0.42279108,79127.0,79119.0,0.14729355]
[1731220025614,0.4480884,79127.0,79119.0,0.12429355]
[1731220026404,0.3608,79120.0,79115.0,0.15276]
[1731220026608,0.1094,79119.0,79115.0,0.15276]
[1731220027008,0.2342,79118.0,79115.0,0.15276]
[1731220027210,0.6134,79118.0,79113.0,0.00189616]
[1731220027411,0.14729355,79114.0,79113.0,0.00189616]
[1731220027918,0.52649355,79114.0,79113.0,0.00189616]
[1731220029312,0.14729355,79114.0,79113.0,0.00189616]
[1731220030019,0.2116251,79114.0,79113.0,0.00189616]
[1731220030422,0.24258386,79114.0,79113.0,0.00189616]
[1731220031422,0.03095876,79114.0,79113.0,0.00189616]
[1731220031721,0.2342,79118.0,79113.0,0.00189616]